[Event "Early-Titled-Tuesday-Blitz-October-10-2023"]
[Site "Chess.com"]
[Date "2023.10.10"]
[Round "4"]
[White "DarZay"]
[Black "Journey_to_GrandMaster_YT"]
[Result "0-1"]
[WhiteElo "2238"]
[BlackElo "2622"]
[TimeControl "180+1"]
[EndTime "8:36:59 PDT"]
[Termination "Journey_to_GrandMaster_YT won by resignation"]

1. e4 {[%clk 0:02:55.6]} 1... d6 {[%clk 0:03:00.9]} 2. d4 {[%clk 0:02:54.8]}
2... Nf6 {[%clk 0:03:01.5]} 3. Nc3 {[%clk 0:02:53.9]} 3... e5 {[%clk 0:03:02.4]}
4. d5 {[%clk 0:02:48.6]} 4... Be7 {[%clk 0:03:01.5]} 5. f3 {[%clk 0:02:43]} 5...
O-O {[%clk 0:03:01.4]} 6. Be3 {[%clk 0:02:42]} 6... c6 {[%clk 0:03:02]} 7. Nge2
{[%clk 0:02:26.4]} 7... cxd5 {[%clk 0:02:56.9]} 8. Nxd5 {[%clk 0:02:26]} 8...
Nxd5 {[%clk 0:02:57.1]} 9. Qxd5 {[%clk 0:02:24.5]} 9... Nc6 {[%clk 0:02:56.7]}
10. a3 {[%clk 0:02:22]} 10... Be6 {[%clk 0:02:46.5]} 11. Qd2 {[%clk 0:02:21.4]}
11... d5 {[%clk 0:02:47]} 12. exd5 {[%clk 0:02:19.5]} 12... Bxd5 {[%clk
0:02:40.1]} 13. O-O-O {[%clk 0:02:17.9]} 13... Be6 {[%clk 0:02:36.1]} 14. Qxd8
{[%clk 0:02:14]} 14... Rfxd8 {[%clk 0:02:37]} 15. Rxd8+ {[%clk 0:02:13.9]} 15...
Rxd8 {[%clk 0:02:37.2]} 16. Nc3 {[%clk 0:02:14.1]} 16... f5 {[%clk 0:02:29.4]}
17. Bb5 {[%clk 0:02:13]} 17... Nd4 {[%clk 0:02:27.6]} 18. Rd1 {[%clk 0:02:08.7]}
18... Nxb5 {[%clk 0:02:22.5]} 19. Rxd8+ {[%clk 0:02:05.5]} 19... Bxd8 {[%clk
0:02:22.3]} 20. Nxb5 {[%clk 0:02:05.6]} 20... a6 {[%clk 0:02:17]} 21. Nc3 {[%clk
0:01:53.7]} 21... Kf7 {[%clk 0:02:13]} 22. Kd2 {[%clk 0:01:52.4]} 22... g5
{[%clk 0:02:06.3]} 23. g3 {[%clk 0:01:49.7]} 23... Bd7 {[%clk 0:02:00.8]} 24.
Nd5 {[%clk 0:01:47.5]} 24... b5 {[%clk 0:01:54.5]} 25. b3 {[%clk 0:01:46.9]}
25... Bc6 {[%clk 0:01:52.3]} 26. c4 {[%clk 0:01:46.9]} 26... bxc4 {[%clk
0:01:42.9]} 27. bxc4 {[%clk 0:01:46.5]} 27... Ba5+ {[%clk 0:01:36.9]} 28. Kd3
{[%clk 0:01:46.1]} 28... h6 {[%clk 0:01:29.9]} 29. h4 {[%clk 0:01:21.9]} 29...
gxh4 {[%clk 0:01:19.2]} 30. gxh4 {[%clk 0:01:22.1]} 30... h5 {[%clk 0:01:18.8]}
31. Bg5 {[%clk 0:01:18.3]} 31... Ke6 {[%clk 0:01:16.7]} 32. Ke3 {[%clk
0:01:11.3]} 32... Bxd5 {[%clk 0:01:14.9]} 33. cxd5+ {[%clk 0:01:10.2]} 33...
Kxd5 {[%clk 0:01:15.1]} 34. Be7 {[%clk 0:01:05.7]} 34... Bb6+ {[%clk 0:00:58.4]}
35. Kd3 {[%clk 0:01:05.6]} 35... e4+ {[%clk 0:00:58.4]} 36. fxe4+ {[%clk
0:01:05.3]} 36... fxe4+ {[%clk 0:00:59.3]} 37. Kc3 {[%clk 0:01:05.3]} 37... Bc5
{[%clk 0:00:52]} 38. Bxc5 {[%clk 0:00:48.8]} 38... Kxc5 {[%clk 0:00:52.9]} 39.
a4 {[%clk 0:00:48]} 39... a5 {[%clk 0:00:52.1]} 40. Kd2 {[%clk 0:00:47.2]} 40...
Kb4 {[%clk 0:00:51]} 41. Ke3 {[%clk 0:00:47.2]} 41... Kxa4 {[%clk 0:00:51.4]}
42. Kxe4 {[%clk 0:00:47.8]} 42... Kb3 {[%clk 0:00:51.8]} 43. Kf5 {[%clk
0:00:47]} 43... a4 {[%clk 0:00:52.3]} 44. Kg5 {[%clk 0:00:47.4]} 44... a3 {[%clk
0:00:53.2]} 45. Kxh5 {[%clk 0:00:47.8]} 45... a2 {[%clk 0:00:54.1]} 46. Kg6
{[%clk 0:00:48.1]} 46... a1=Q {[%clk 0:00:55]} 47. h5 {[%clk 0:00:48.6]} 47...
Qh8 {[%clk 0:00:55.1]} 0-1

[Event "Early-Titled-Tuesday-Blitz-October-10-2023"]
[Site "Chess.com"]
[Date "2023.10.10"]
[Round "4"]
[White "Mystery2007"]
[Black "ukchessbomber"]
[Result "1-0"]
[WhiteElo "2490"]
[BlackElo "2637"]
[TimeControl "180+1"]
[EndTime "8:37:12 PDT"]
[Termination "Mystery2007 won by resignation"]

1. e4 {[%clk 0:03:00.9]} 1... a6 {[%clk 0:02:57.3]} 2. d4 {[%clk 0:02:57.7]}
2... b5 {[%clk 0:02:53.2]} 3. a4 {[%clk 0:02:56.3]} 3... b4 {[%clk 0:02:53.3]}
4. Nd2 {[%clk 0:02:49.4]} 4... e6 {[%clk 0:02:54.2]} 5. Nb3 {[%clk 0:02:46.9]}
5... Bb7 {[%clk 0:02:55.1]} 6. Bd3 {[%clk 0:02:43.8]} 6... Nf6 {[%clk 0:02:55]}
7. Qe2 {[%clk 0:02:39.6]} 7... d5 {[%clk 0:02:54.8]} 8. e5 {[%clk 0:02:35.2]}
8... Nfd7 {[%clk 0:02:54.9]} 9. Nf3 {[%clk 0:02:22.2]} 9... Be7 {[%clk
0:02:55.4]} 10. h4 {[%clk 0:02:20.8]} 10... h6 {[%clk 0:02:55.3]} 11. Bd2 {[%clk
0:02:15.4]} 11... a5 {[%clk 0:02:55.2]} 12. Rh3 {[%clk 0:02:07.3]} 12... c6
{[%clk 0:02:54.7]} 13. Kf1 {[%clk 0:02:07.4]} 13... Na6 {[%clk 0:02:53.8]} 14.
Kg1 {[%clk 0:02:06.3]} 14... c5 {[%clk 0:02:53.2]} 15. dxc5 {[%clk 0:02:05.6]}
15... Naxc5 {[%clk 0:02:53.1]} 16. Nxc5 {[%clk 0:02:05.1]} 16... Nxc5 {[%clk
0:02:53.5]} 17. Bb5+ {[%clk 0:02:05.1]} 17... Kf8 {[%clk 0:02:54.4]} 18. Nd4
{[%clk 0:01:57.5]} 18... Qb6 {[%clk 0:02:50]} 19. Be3 {[%clk 0:01:53.6]} 19...
Rc8 {[%clk 0:02:49.6]} 20. Nb3 {[%clk 0:01:48.6]} 20... Qc7 {[%clk 0:02:47.7]}
21. Nxc5 {[%clk 0:01:39.4]} 21... Bxc5 {[%clk 0:02:48.6]} 22. Bxc5+ {[%clk
0:01:36]} 22... Qxc5 {[%clk 0:02:49.5]} 23. c3 {[%clk 0:01:35.2]} 23... d4
{[%clk 0:02:38.1]} 24. cxd4 {[%clk 0:01:33]} 24... Qxd4 {[%clk 0:02:39]} 25. Rd1
{[%clk 0:01:32.4]} 25... Qf4 {[%clk 0:02:34]} 26. Rhd3 {[%clk 0:01:20.2]} 26...
Bd5 {[%clk 0:02:29.6]} 27. Rd4 {[%clk 0:01:16.8]} 27... Qf5 {[%clk 0:02:29.3]}
28. Bd7 {[%clk 0:01:13.2]} 28... Rc2 {[%clk 0:02:27.2]} 29. Qe3 {[%clk
0:01:04.6]} 29... Qg6 {[%clk 0:01:55.9]} 30. Rxd5 {[%clk 0:01:04.2]} 30... exd5
{[%clk 0:01:56.8]} 31. e6 {[%clk 0:00:52.8]} 31... Qe4 {[%clk 0:01:49.9]} 32.
Qg3 {[%clk 0:00:42.5]} 32... fxe6 {[%clk 0:01:45.8]} 33. Qb8+ {[%clk 0:00:36.8]}
33... Ke7 {[%clk 0:01:45.5]} 34. Qxh8 {[%clk 0:00:36.7]} 34... Kxd7 {[%clk
0:01:46.3]} 35. Qxg7+ {[%clk 0:00:37.2]} 35... Kc6 {[%clk 0:01:47]} 36. Qxh6
{[%clk 0:00:34]} 36... Qe2 {[%clk 0:01:46.2]} 37. Rf1 {[%clk 0:00:31.3]} 37...
Rxb2 {[%clk 0:01:46.6]} 38. Qf8 {[%clk 0:00:24.7]} 38... Rd2 {[%clk 0:00:51.6]}
39. Rc1+ {[%clk 0:00:24.4]} 39... Kd7 {[%clk 0:00:43.9]} 40. Qc8+ {[%clk
0:00:23.1]} 1-0

[Event "Early-Titled-Tuesday-Blitz-October-10-2023"]
[Site "Chess.com"]
[Date "2023.10.10"]
[Round "4"]
[White "FMStan15"]
[Black "Gerasimenyuk_Miha"]
[Result "0-1"]
[WhiteElo "2121"]
[BlackElo "2437"]
[TimeControl "180+1"]
[EndTime "8:37:14 PDT"]
[Termination "Gerasimenyuk_Miha won on time"]

1. e4 {[%clk 0:02:17]} 1... d5 {[%clk 0:02:59.5]} 2. e5 {[%clk 0:02:16.8]} 2...
c5 {[%clk 0:02:59.6]} 3. c3 {[%clk 0:02:17.7]} 3... Nc6 {[%clk 0:03:00.5]} 4. d4
{[%clk 0:02:18]} 4... cxd4 {[%clk 0:03:01.4]} 5. cxd4 {[%clk 0:02:17.8]} 5... h5
{[%clk 0:03:02.3]} 6. h3 {[%clk 0:02:17.3]} 6... Nh6 {[%clk 0:03:02.4]} 7. Bxh6
{[%clk 0:02:15.7]} 7... Rxh6 {[%clk 0:03:02.1]} 8. Nf3 {[%clk 0:02:16.6]} 8...
Bf5 {[%clk 0:03:01.6]} 9. Bd3 {[%clk 0:02:16.4]} 9... g6 {[%clk 0:02:59.2]} 10.
Bxf5 {[%clk 0:02:13.2]} 10... gxf5 {[%clk 0:02:59.2]} 11. O-O {[%clk 0:02:12.2]}
11... e6 {[%clk 0:02:59.2]} 12. Nc3 {[%clk 0:02:10.9]} 12... Rg6 {[%clk
0:02:58.9]} 13. a3 {[%clk 0:02:08.2]} 13... Bh6 {[%clk 0:02:58.4]} 14. b4 {[%clk
0:02:07.8]} 14... Ke7 {[%clk 0:02:55.8]} 15. Nb5 {[%clk 0:02:07.6]} 15... a6
{[%clk 0:02:54.9]} 16. Nd6 {[%clk 0:02:07.1]} 16... Qg8 {[%clk 0:02:55.4]} 17.
g3 {[%clk 0:02:05.1]} 17... Bf4 {[%clk 0:02:49.6]} 18. Kh1 {[%clk 0:02:04.4]}
18... Bxg3 {[%clk 0:02:48.9]} 19. fxg3 {[%clk 0:02:04.3]} 19... Rxg3 {[%clk
0:02:48.9]} 20. Nh2 {[%clk 0:02:04.5]} 20... Qg6 {[%clk 0:02:41.8]} 21. Rg1
{[%clk 0:02:03.8]} 21... Rg8 {[%clk 0:02:41.5]} 22. Rxg3 {[%clk 0:02:00.5]}
22... Qxg3 {[%clk 0:02:41.5]} 23. Qg1 {[%clk 0:01:58.5]} 23... Qc3 {[%clk
0:02:37.6]} 24. Qxg8 {[%clk 0:01:56.7]} 24... Qxa1+ {[%clk 0:02:37.2]} 25. Kg2
{[%clk 0:01:57]} 25... Qb2+ {[%clk 0:02:36.9]} 26. Kg3 {[%clk 0:01:57]} 26...
h4+ {[%clk 0:02:22.7]} 27. Kxh4 {[%clk 0:01:51.3]} 27... Qxd4+ {[%clk
0:02:21.9]} 28. Kh5 {[%clk 0:01:50.6]} 28... Nxe5 {[%clk 0:02:20.5]} 29. Nxf7
{[%clk 0:01:35.3]} 29... Nxf7 {[%clk 0:02:17.2]} 30. Nf3 {[%clk 0:01:33.6]}
30... Qd1 {[%clk 0:02:08.4]} 31. Qg3 {[%clk 0:01:31.8]} 31... Ne5 {[%clk
0:02:02.6]} 32. Qg7+ {[%clk 0:01:25.6]} 32... Nf7 {[%clk 0:02:02.9]} 33. Kg6
{[%clk 0:01:11.7]} 33... Qxf3 {[%clk 0:02:02.4]} 34. Qxf7+ {[%clk 0:01:10.9]}
34... Kd6 {[%clk 0:02:02.5]} 35. Qf8+ {[%clk 0:01:08.7]} 35... Ke5 {[%clk
0:02:02]} 36. Qf6+ {[%clk 0:00:57.5]} 36... Kf4 {[%clk 0:02:00.4]} 37. Qxe6
{[%clk 0:00:56.3]} 37... Qxh3 {[%clk 0:01:55.9]} 38. Qxd5 {[%clk 0:00:52.6]}
38... Qg4+ {[%clk 0:01:55]} 39. Kf7 {[%clk 0:00:46.8]} 39... Qf3 {[%clk
0:01:53.2]} 40. Qd6+ {[%clk 0:00:43.7]} 40... Ke3 {[%clk 0:01:52.7]} 41. Qc5+
{[%clk 0:00:41.1]} 41... Kd3 {[%clk 0:01:49]} 42. Qd6+ {[%clk 0:00:38.9]} 42...
Kc4 {[%clk 0:01:46.6]} 43. Qc5+ {[%clk 0:00:36]} 43... Kb3 {[%clk 0:01:46.6]}
44. b5 {[%clk 0:00:32.4]} 44... axb5 {[%clk 0:01:35.5]} 45. Qxb5+ {[%clk
0:00:31.5]} 45... Ka2 {[%clk 0:01:35]} 46. Qc4+ {[%clk 0:00:18.3]} 46... Qb3
{[%clk 0:01:34.9]} 0-1

[Event "Early-Titled-Tuesday-Blitz-October-10-2023"]
[Site "Chess.com"]
[Date "2023.10.10"]
[Round "4"]
[White "almaguerjm"]
[Black "LileKoridze"]
[Result "1-0"]
[WhiteElo "2519"]
[BlackElo "2340"]
[TimeControl "180+1"]
[EndTime "8:37:15 PDT"]
[Termination "almaguerjm won by checkmate"]

1. e4 {[%clk 0:03:00.9]} 1... c5 {[%clk 0:02:59.1]} 2. Nf3 {[%clk 0:03:00.1]}
2... d6 {[%clk 0:02:58.8]} 3. d4 {[%clk 0:02:57.6]} 3... cxd4 {[%clk 0:02:59.1]}
4. Nxd4 {[%clk 0:02:58.5]} 4... Nf6 {[%clk 0:02:58.8]} 5. Nc3 {[%clk 0:02:58.3]}
5... a6 {[%clk 0:02:57.2]} 6. Be2 {[%clk 0:02:58.6]} 6... e5 {[%clk 0:02:54.9]}
7. Nb3 {[%clk 0:02:59]} 7... Be7 {[%clk 0:02:54.2]} 8. Be3 {[%clk 0:02:57.9]}
8... Be6 {[%clk 0:02:49.3]} 9. a4 {[%clk 0:02:57.2]} 9... Nbd7 {[%clk
0:02:47.5]} 10. Qd3 {[%clk 0:02:55.1]} 10... O-O {[%clk 0:02:46.9]} 11. Nd5
{[%clk 0:02:48.9]} 11... Bxd5 {[%clk 0:02:44.9]} 12. exd5 {[%clk 0:02:49.8]}
12... Rc8 {[%clk 0:02:45.1]} 13. c4 {[%clk 0:02:48.3]} 13... Qc7 {[%clk
0:02:41.5]} 14. a5 {[%clk 0:02:38.6]} 14... b6 {[%clk 0:02:02.9]} 15. O-O {[%clk
0:02:29.9]} 15... bxa5 {[%clk 0:01:00.3]} 16. Nxa5 {[%clk 0:02:22.8]} 16... Nc5
{[%clk 0:00:58.1]} 17. Qa3 {[%clk 0:02:21]} 17... Nfd7 {[%clk 0:00:53.7]} 18.
Nc6 {[%clk 0:02:17.3]} 18... Bf6 {[%clk 0:00:53.6]} 19. b4 {[%clk 0:02:13.2]}
19... Ne4 {[%clk 0:00:53]} 20. Bd3 {[%clk 0:02:08.7]} 20... Ng5 {[%clk
0:00:45.3]} 21. h4 {[%clk 0:02:08.3]} 21... e4 {[%clk 0:00:45.2]} 22. Bc2 {[%clk
0:01:55.6]} 22... Bxa1 {[%clk 0:00:41.8]} 23. Rxa1 {[%clk 0:01:50]} 23... Nf3+
{[%clk 0:00:36.4]} 24. gxf3 {[%clk 0:01:48.7]} 24... exf3 {[%clk 0:00:37.3]} 25.
Bd4 {[%clk 0:01:43.1]} 25... Rce8 {[%clk 0:00:32.4]} 26. Qd3 {[%clk 0:01:38.2]}
26... g6 {[%clk 0:00:26]} 27. Qxf3 {[%clk 0:01:35.4]} 27... f5 {[%clk
0:00:24.8]} 28. Rxa6 {[%clk 0:01:31]} 28... Nf6 {[%clk 0:00:23.8]} 29. Ra7
{[%clk 0:01:28.6]} 29... Qc8 {[%clk 0:00:20]} 30. Qc3 {[%clk 0:01:28.1]} 30...
Nh5 {[%clk 0:00:16]} 31. Ne7+ {[%clk 0:01:18.4]} 31... Rxe7 {[%clk 0:00:15.6]}
32. Rxe7 {[%clk 0:01:19.3]} 32... f4 {[%clk 0:00:16.1]} 33. Re6 {[%clk
0:01:09.5]} 33... Qd8 {[%clk 0:00:15]} 34. Qh3 {[%clk 0:01:06.5]} 34... f3
{[%clk 0:00:06.8]} 35. Rxg6+ {[%clk 0:00:49.4]} 35... hxg6 {[%clk 0:00:06.5]}
36. Qe6+ {[%clk 0:00:48.7]} 36... Kh7 {[%clk 0:00:05.7]} 37. Qxg6# {[%clk
0:00:48.3]} 1-0

[Event "Early-Titled-Tuesday-Blitz-October-10-2023"]
[Site "Chess.com"]
[Date "2023.10.10"]
[Round "4"]
[White "Riku-gan"]
[Black "masnyszachistaaa"]
[Result "1/2-1/2"]
[WhiteElo "2834"]
[BlackElo "2591"]
[TimeControl "180+1"]
[EndTime "8:37:20 PDT"]
[Termination "Game drawn by agreement"]

1. Nc3 {[%clk 0:02:53.9]} 1... c5 {[%clk 0:02:52.4]} 2. e4 {[%clk 0:02:51.6]}
2... e6 {[%clk 0:02:50.5]} 3. f4 {[%clk 0:02:50.6]} 3... d5 {[%clk 0:02:50.3]}
4. Nf3 {[%clk 0:02:50.2]} 4... dxe4 {[%clk 0:02:49.9]} 5. Nxe4 {[%clk
0:02:51.1]} 5... Be7 {[%clk 0:02:50.2]} 6. b3 {[%clk 0:02:44.5]} 6... Nf6 {[%clk
0:02:47.6]} 7. Nf2 {[%clk 0:02:42.8]} 7... O-O {[%clk 0:02:47.3]} 8. Bb2 {[%clk
0:02:43.3]} 8... b6 {[%clk 0:02:47.7]} 9. Bd3 {[%clk 0:02:42.7]} 9... Bb7 {[%clk
0:02:47.6]} 10. O-O {[%clk 0:02:42.7]} 10... Nc6 {[%clk 0:02:47.5]} 11. Ne5
{[%clk 0:02:42.4]} 11... Nb4 {[%clk 0:02:41.5]} 12. Be2 {[%clk 0:02:29.8]} 12...
Qc7 {[%clk 0:02:35.1]} 13. d3 {[%clk 0:02:29.8]} 13... Rad8 {[%clk 0:02:33.6]}
14. Nfg4 {[%clk 0:02:29.5]} 14... Nbd5 {[%clk 0:02:30.3]} 15. Qd2 {[%clk
0:02:27.2]} 15... Nxg4 {[%clk 0:02:28]} 16. Bxg4 {[%clk 0:02:28.1]} 16... Bf6
{[%clk 0:02:27.4]} 17. Rae1 {[%clk 0:02:27]} 17... Ne7 {[%clk 0:02:19.9]} 18. f5
{[%clk 0:02:08.6]} 18... Nxf5 {[%clk 0:02:19.9]} 19. Bxf5 {[%clk 0:02:09.5]}
19... exf5 {[%clk 0:02:20.8]} 20. Rxf5 {[%clk 0:02:06.8]} 20... Bxe5 {[%clk
0:02:15.4]} 21. Bxe5 {[%clk 0:02:03.6]} 21... Qc6 {[%clk 0:02:15.6]} 22. Bc3
{[%clk 0:01:53.6]} 22... Rde8 {[%clk 0:02:01.8]} 23. Rxe8 {[%clk 0:01:46.5]}
23... Rxe8 {[%clk 0:02:02.7]} 24. Qg5 {[%clk 0:01:46.9]} 24... Qg6 {[%clk
0:01:46.7]} 25. Re5 {[%clk 0:01:36.4]} 25... Kf8 {[%clk 0:01:25]} 26. Rxe8+
{[%clk 0:01:31]} 26... Kxe8 {[%clk 0:01:25.9]} 27. Qxg6 {[%clk 0:01:31.5]} 27...
hxg6 {[%clk 0:01:26.7]} 28. Bxg7 {[%clk 0:01:32.3]} 28... Ke7 {[%clk 0:01:21.6]}
29. Be5 {[%clk 0:01:27.4]} 29... a6 {[%clk 0:01:02.2]} 30. Kf2 {[%clk
0:01:25.4]} 30... Ke6 {[%clk 0:01:01.4]} 31. Bc7 {[%clk 0:01:24.2]} 31... b5
{[%clk 0:01:01.6]} 32. c4 {[%clk 0:01:22.6]} 32... bxc4 {[%clk 0:00:56.3]} 33.
dxc4 {[%clk 0:01:23.5]} 33... Be4 {[%clk 0:00:54.8]} 34. a3 {[%clk 0:01:15]}
34... Kd7 {[%clk 0:00:44.8]} 35. Be5 {[%clk 0:01:14]} 35... Kc6 {[%clk
0:00:40.1]} 36. g4 {[%clk 0:01:08.8]} 36... Bc2 {[%clk 0:00:39.5]} 37. b4 {[%clk
0:01:07.3]} 37... Bd3 {[%clk 0:00:39]} 38. Ke3 {[%clk 0:01:04.7]} 38... Bxc4
{[%clk 0:00:38.9]} 39. bxc5 {[%clk 0:01:05.6]} 39... Kxc5 {[%clk 0:00:39.4]} 40.
Kf4 {[%clk 0:01:06.5]} 40... Kd5 {[%clk 0:00:38.2]} 41. Bc3 {[%clk 0:01:05.1]}
41... Ke6 {[%clk 0:00:27.3]} 42. Kg5 {[%clk 0:01:05.3]} 42... f5 {[%clk
0:00:20.6]} 43. gxf5+ {[%clk 0:01:05.6]} 43... gxf5 {[%clk 0:00:21.5]} 44. h4
{[%clk 0:01:06.5]} 44... Be2 {[%clk 0:00:21.4]} 45. h5 {[%clk 0:01:03.2]} 45...
f4 {[%clk 0:00:20.3]} 46. Kxf4 {[%clk 0:01:02.8]} 46... Bxh5 {[%clk 0:00:20.3]}
47. Ke3 {[%clk 0:01:03.7]} 47... Kd5 {[%clk 0:00:20.6]} 48. Bb4 {[%clk
0:01:03.5]} 48... Kc4 {[%clk 0:00:20.5]} 49. Bf8 {[%clk 0:01:04.4]} 49... Bf7
{[%clk 0:00:19.2]} 1/2-1/2

[Event "Early-Titled-Tuesday-Blitz-October-10-2023"]
[Site "Chess.com"]
[Date "2023.10.10"]
[Round "4"]
[White "hakanazeri2"]
[Black "noblerone"]
[Result "1/2-1/2"]
[WhiteElo "2616"]
[BlackElo "2478"]
[TimeControl "180+1"]
[EndTime "8:37:22 PDT"]
[Termination "Game drawn by repetition"]

1. c4 {[%clk 0:03:00.9]} 1... c6 {[%clk 0:02:59.9]} 2. d4 {[%clk 0:03:00.7]}
2... d5 {[%clk 0:03:00.4]} 3. Nf3 {[%clk 0:03:01.3]} 3... Nf6 {[%clk 0:03:00.6]}
4. Nc3 {[%clk 0:03:02]} 4... dxc4 {[%clk 0:03:00.4]} 5. a4 {[%clk 0:03:02.1]}
5... Bf5 {[%clk 0:03:00.3]} 6. Ne5 {[%clk 0:03:02.5]} 6... Nbd7 {[%clk 0:03:00]}
7. Nxc4 {[%clk 0:03:02.7]} 7... Nb6 {[%clk 0:03:00.7]} 8. Ne5 {[%clk 0:03:00]}
8... a5 {[%clk 0:03:00.6]} 9. f3 {[%clk 0:02:59.5]} 9... Nfd7 {[%clk 0:02:58.8]}
10. Nxd7 {[%clk 0:02:58.7]} 10... Nxd7 {[%clk 0:02:58.8]} 11. e4 {[%clk
0:02:58.9]} 11... Bg6 {[%clk 0:02:56.8]} 12. Be3 {[%clk 0:02:59]} 12... e5
{[%clk 0:02:54.6]} 13. d5 {[%clk 0:02:55.7]} 13... Bc5 {[%clk 0:02:40]} 14. dxc6
{[%clk 0:02:46.6]} 14... bxc6 {[%clk 0:02:39.1]} 15. Qd2 {[%clk 0:02:42.3]}
15... Qb6 {[%clk 0:02:31]} 16. Bxc5 {[%clk 0:02:41.7]} 16... Nxc5 {[%clk
0:02:29.3]} 17. Bc4 {[%clk 0:02:41.1]} 17... Rd8 {[%clk 0:02:27]} 18. Qf2 {[%clk
0:02:38.5]} 18... Qb4 {[%clk 0:02:22.9]} 19. Qe2 {[%clk 0:02:22.3]} 19... Rd4
{[%clk 0:02:07.2]} 20. Ba6 {[%clk 0:02:17.9]} 20... Nb3 {[%clk 0:01:59.3]} 21.
Rd1 {[%clk 0:02:15]} 21... O-O {[%clk 0:01:47.8]} 22. O-O {[%clk 0:02:13.3]}
22... Rfd8 {[%clk 0:01:47.8]} 23. Kh1 {[%clk 0:01:59.7]} 23... h6 {[%clk
0:01:42.8]} 24. Bc4 {[%clk 0:01:40.7]} 24... Rxd1 {[%clk 0:01:01.1]} 25. Rxd1
{[%clk 0:01:38.4]} 25... Rxd1+ {[%clk 0:01:01]} 26. Nxd1 {[%clk 0:01:37.8]}
26... Qxa4 {[%clk 0:00:57.7]} 27. Bxb3 {[%clk 0:01:33.7]} 27... Qxb3 {[%clk
0:00:57.3]} 28. h3 {[%clk 0:01:28.6]} 28... f6 {[%clk 0:00:54.6]} 29. Ne3 {[%clk
0:01:28.5]} 29... a4 {[%clk 0:00:49.7]} 30. Kh2 {[%clk 0:01:19.3]} 30... a3
{[%clk 0:00:33.2]} 31. bxa3 {[%clk 0:01:18.9]} 31... Qxa3 {[%clk 0:00:34.1]} 32.
Qd2 {[%clk 0:01:07]} 32... Qe7 {[%clk 0:00:32.3]} 33. Qc3 {[%clk 0:01:04.8]}
33... Qd7 {[%clk 0:00:30.3]} 34. Qb3+ {[%clk 0:01:03.4]} 34... Bf7 {[%clk
0:00:29.7]} 35. Qb8+ {[%clk 0:01:03]} 35... Kh7 {[%clk 0:00:29.5]} 36. Qf8
{[%clk 0:00:59.7]} 36... Be6 {[%clk 0:00:28.4]} 37. h4 {[%clk 0:00:55.8]} 37...
Qf7 {[%clk 0:00:26.8]} 38. Qd6 {[%clk 0:00:51.1]} 38... Qd7 {[%clk 0:00:27]} 39.
Qf8 {[%clk 0:00:50.5]} 39... Qc7 {[%clk 0:00:23.5]} 40. Qe8 {[%clk 0:00:46]}
40... Bf7 {[%clk 0:00:18]} 41. Qf8 {[%clk 0:00:46.3]} 41... Be6 {[%clk
0:00:18.5]} 42. Qe8 {[%clk 0:00:46.7]} 42... Qd7 {[%clk 0:00:18.9]} 43. Qf8
{[%clk 0:00:44.3]} 1/2-1/2

[Event "Early-Titled-Tuesday-Blitz-October-10-2023"]
[Site "Chess.com"]
[Date "2023.10.10"]
[Round "4"]
[White "kacprekt"]
[Black "valeriocarnicelli"]
[Result "0-1"]
[WhiteElo "2473"]
[BlackElo "2636"]
[TimeControl "180+1"]
[EndTime "8:37:24 PDT"]
[Termination "valeriocarnicelli won by resignation"]

1. e4 {[%clk 0:03:00.9]} 1... e5 {[%clk 0:03:00]} 2. Nf3 {[%clk 0:03:00.5]} 2...
Nc6 {[%clk 0:03:00.3]} 3. Nc3 {[%clk 0:02:59.5]} 3... Nf6 {[%clk 0:03:00.2]} 4.
Bc4 {[%clk 0:03:00.2]} 4... Bc5 {[%clk 0:02:58.8]} 5. d3 {[%clk 0:02:57.4]} 5...
d6 {[%clk 0:02:57.6]} 6. O-O {[%clk 0:02:55.1]} 6... a6 {[%clk 0:02:57.6]} 7. a3
{[%clk 0:02:47.6]} 7... h6 {[%clk 0:02:55.9]} 8. Be3 {[%clk 0:02:44.4]} 8... Bg4
{[%clk 0:02:49.7]} 9. h3 {[%clk 0:02:40.6]} 9... Bh5 {[%clk 0:02:50]} 10. b4
{[%clk 0:02:29.7]} 10... Ba7 {[%clk 0:02:46.2]} 11. Nd5 {[%clk 0:02:13.8]} 11...
Nd4 {[%clk 0:02:40.3]} 12. Bxd4 {[%clk 0:02:09]} 12... Bxd4 {[%clk 0:02:40.2]}
13. c3 {[%clk 0:02:07.8]} 13... Ba7 {[%clk 0:02:23.4]} 14. Qa4+ {[%clk
0:01:39.7]} 14... b5 {[%clk 0:02:16.6]} 15. Qxa6 {[%clk 0:01:39.1]} 15... Bxf2+
{[%clk 0:02:16.2]} 16. Rxf2 {[%clk 0:01:35.7]} 16... Rxa6 {[%clk 0:02:16.2]} 17.
Bxb5+ {[%clk 0:01:35.6]} 17... c6 {[%clk 0:02:09.8]} 18. Nxf6+ {[%clk
0:01:34.9]} 18... gxf6 {[%clk 0:02:08.6]} 19. Bxa6 {[%clk 0:01:35.6]} 19... Bxf3
{[%clk 0:02:07.7]} 20. gxf3 {[%clk 0:01:34.1]} 20... Rg8+ {[%clk 0:02:01.5]} 21.
Kf1 {[%clk 0:01:29.2]} 21... Qd7 {[%clk 0:01:52.1]} 22. Ke2 {[%clk 0:01:25.8]}
22... Qxh3 {[%clk 0:01:50.1]} 23. a4 {[%clk 0:01:25.2]} 23... Rg2 {[%clk
0:01:48.8]} 24. Rf1 {[%clk 0:01:24.3]} 24... Rxf2+ {[%clk 0:01:42.6]} 25. Rxf2
{[%clk 0:01:25.2]} 25... Qh1 {[%clk 0:01:42.4]} 26. Rf1 {[%clk 0:00:56.3]} 26...
Qg2+ {[%clk 0:01:42.3]} 27. Rf2 {[%clk 0:00:56.5]} 27... Qg5 {[%clk 0:01:42.3]}
28. Rf1 {[%clk 0:00:52]} 28... h5 {[%clk 0:01:41.5]} 29. Bb7 {[%clk 0:00:49.6]}
29... Kd7 {[%clk 0:01:40]} 30. a5 {[%clk 0:00:49.9]} 30... Kc7 {[%clk
0:01:35.9]} 31. a6 {[%clk 0:00:46.6]} 31... Kb6 {[%clk 0:01:22]} 32. c4 {[%clk
0:00:46.5]} 32... h4 {[%clk 0:01:16.5]} 33. c5+ {[%clk 0:00:42]} 33... dxc5
{[%clk 0:01:13.4]} 34. bxc5+ {[%clk 0:00:42.9]} 34... Ka7 {[%clk 0:01:13.8]} 35.
Bxc6 {[%clk 0:00:41.5]} 35... h3 {[%clk 0:01:07.3]} 36. Rb1 {[%clk 0:00:33]}
36... h2 {[%clk 0:00:49.3]} 37. Rb7+ {[%clk 0:00:24.9]} 37... Kxa6 {[%clk
0:00:49.7]} 38. Rb4 {[%clk 0:00:21.6]} 38... Qg2+ {[%clk 0:00:46.6]} 39. Ke3
{[%clk 0:00:20.2]} 39... Qg1+ {[%clk 0:00:46.6]} 0-1